Cogmind - Beta 17 @@@ ROGUE MODE // 2026.07.19 @ 20:40:32 Player: Cracklepappy Result: Destroyed by G-47 Trooper with Particle Gun Performance ------------- Evolutions (3) 1500 Regions Visited (11) 2200 Robots Destroyed (444) 2220 Value Destroyed (21002) 21002 Prototype IDs (13) 260 Alien Tech Used (0) 0 Bonus (23566) 23566 TOTAL SCORE: 50748 Bonus ------- Triggered High Security 500 High Alert Combat Kills 11052 Follower Combat Kills 1049 Prayed to X0-1V1 5000 Major X0-1V1 Interference 5400 Entered Garrisons 800 Friendly Fire -235 Cogmind --------- Core Integrity 0/550 Matter 107/300 Energy 100/100 System Corruption 17% Temperature Cool (9) Movement Core (1400) Ox27 Location -7/Factory Parts ------- > --- POWER (2) -------- (None) > --- PROPULSION (1) --- (None) > --- UTILITY (6) ------ Improved Cooling System Huge Storage Unit > --- WEAPON (4) ------- (None) > --- INVENTORY (25) --- Light Nuclear Core Compact Wheel Cargo Storage Unit High-capacity Matter Pod (0) IFF Parser Force Field Makeshift Hacking Suite Remote Datajack Chainsword Peak State ------------ > --- POWER ------------ Reinforced Deuterium Engine Micro Nuclear Core > --- PROPULSION ------- Compact Wheel > --- UTILITY ---------- Improved Cooling System Huge Storage Unit Layered Heavy Armor Plating Powered Armor X0-1V1's Piety Tracker > --- WEAPON ----------- Gauss Rifle Flak Gun Flak Gun Flak Gun Proton Missile Launcher Proton Missile Launcher Heavy Missile Launcher > --- INVENTORY -------- Compact Wheel Compact Wheel Improved Cooling System Cargo Storage Unit High-capacity Matter Pod High-capacity Matter Pod IFF Parser Layered Heavy Armor Plating Damper Plating Force Field Makeshift Hacking Suite Gatling Laser Gatling Laser Gatling Laser Gatling Laser Gatling Laser Chainsword [Rating: 79] Favorites ----------- Power Light Nuclear Core Engine Reinforced Deuterium Engine Power Core Light Nuclear Core Reactor Light Antimatter Reactor Propulsion Compact Wheel Treads Light Treads Wheel Compact Wheel Utility X0-1V1's Piety Tracker Device X0-1V1's Piety Tracker Storage Huge Storage Unit Processor Improved Salvage Targeting Computer Protection Layered Heavy Armor Plating Weapon Autogun Energy Gun Gatling Laser Energy Cannon Ion Cannon Ballistic Gun Autogun Ballistic Cannon Heavy Mass Driver Launcher Proton Missile Launcher Special Weapon Mining Laser Impact Weapon Makeshift Hammer Slashing Weapon Scythe Build | -11 -10 -9 -8 -8 -7 -7 -7 -7 -7 -7 -7 ------- Run | Yrd Mat Mat Mat Gar Fac Gar Fac Gar Fac Gar Fac Slots Evolved 6 | . . 2 2 . 2 . . . . . . Power 1 | . . . . . 1 . . . . . . Propulsion . | . . . . . . . . . . . . Utility 3 | . . . 2 . 1 . . . . . . Weapon 2 | . . 2 . . . . . . . . . Parts Attached 191 | 5 15 32 36 22 3 24 6 9 5 14 20 Power 25 | . 3 6 2 5 1 3 1 2 . 2 . Engine 11 | . 3 5 2 . . . . . . 1 . Core 12 | . . 1 . 5 1 2 1 1 . 1 . Reactor 2 | . . . . . . 1 . 1 . . . Propulsion 38 | 2 2 11 11 5 . 2 . 1 . 1 3 Treads 15 | 2 2 8 2 . . . . . . . 1 Leg . | . . . . . . . . . . . . Wheel 23 | . . 3 9 5 . 2 . 1 . 1 2 Hover . | . . . . . . . . . . . . Flight . | . . . . . . . . . . . . Utility 51 | 2 5 3 7 4 1 12 2 1 3 6 5 Device 22 | 2 1 1 . 1 . 7 1 1 2 4 2 Storage 7 | . 3 1 2 . . . . . . 1 . Processor 7 | . 1 1 2 . . 1 1 . . 1 . Hackware . | . . . . . . . . . . . . Protection 15 | . . . 3 3 1 4 . . 1 . 3 Artifact . | . . . . . . . . . . . . Weapon 77 | 1 5 12 16 8 1 7 3 5 2 5 12 Energy Gun 9 | . 3 1 . . . . . . . . 5 Energy Cannon 2 | . . . . . . . . . . . 2 Ballistic Gun 55 | 1 1 10 15 8 . 5 2 3 2 5 3 Ballistic Cannon 3 | . . . 1 . . . . 2 . . . Launcher 3 | . . . . . . 1 . . . . 2 Special Weapon 2 | . 1 . . . 1 . . . . . . Impact Weapon 1 | . . . . . . 1 . . . . . Slashing Weapon 2 | . . 1 . . . . 1 . . . . Piercing Weapon . | . . . . . . . . . . . . Special Melee Weapon . | . . . . . . . . . . . . Unidentified Prototypes 4 | . 1 2 . . . . . . . 1 . Parts Lost 46 | . 2 . 3 5 . 3 . 1 2 3 27 Power 3 | . 1 . . . . . . . . . 2 Propulsion 10 | . 1 . 2 2 . 1 . . . 1 3 Utility 12 | . . . . 1 . 2 . 1 2 . 6 Weapon 21 | . . . 1 2 . . . . . 2 16 Highest Loss Streak 15 | . 1 . 1 2 . 1 . 1 1 2 15 To Critical Strikes 1 | . 1 . . . . . . . . . . Average Backups 20 | 3 15 23 24 23 23 22 19 19 20 20 18 Power . | . . . . . . . . . . . . Propulsion 3 | . 3 5 5 5 4 2 1 2 2 1 2 Utility 8 | . 5 11 7 7 10 9 10 9 8 8 8 Weapon 7 | 1 4 4 10 8 7 9 8 7 9 9 6 Tool/Special . | . . . . . . . . . . . . Unused Backups 81 | . 5 18 23 3 . 9 4 3 . 10 6 Power 4 | . . 1 . 1 . . . . . 1 1 Propulsion 6 | . 1 4 . . . 1 . . . . . Utility 35 | . 2 6 12 2 . 4 3 1 . 1 4 Weapon 32 | . 1 7 10 . . 3 1 2 . 8 . Tool/Special 4 | . 1 . 1 . . 1 . . . . 1 Average Slot Usage (%) 95 | . 95 99 99 98 91 98 92 87 91 91 83 Engine 4 | . 11 10 9 . . . . . . 3 4 Core 5 | . . . . 8 15 7 7 7 7 8 6 Reactor 2 | . . . . . . 6 7 7 7 2 . Treads 7 | . 27 16 2 12 . . . . . . . Wheel 6 | . . 5 15 3 7 6 7 7 7 6 5 Device 13 | . 4 10 9 10 15 16 23 22 22 15 13 Storage 8 | . 11 11 9 9 7 7 7 7 7 7 6 Processor 4 | . 11 . 8 7 . 4 . . . 4 . Protection 7 | . . . 8 9 14 14 7 7 6 10 12 Energy Gun 1 | . 9 1 . . . . . . . . 4 Ballistic Gun 29 | . 16 42 33 32 29 29 29 22 29 28 16 Peak Build Rating 79 | 7 22 33 43 50 57 74 76 78 78 78 79 Average Rating 50 | 4 8 30 38 45 55 62 73 75 75 72 67 On Entrance 48 | . 7 22 33 43 48 55 74 73 74 78 70 Avg Prop Armor Cover (%) 31 | 32 30 . . . . . . . . . . Naked Turns . | . . . . . . . . . . . . Heaviest Build 171 | 3 48 101 111 110 121 142 145 163 151 155 171 Greatest Support 43 | 20 40 43 40 40 28 28 16 16 16 16 28 Greatest Overweight (x) 15 | . 2 3 5 10 4 13 9 10 9 15 10 Average Overweight (x) 6 | . . 2 4 2 4 9 8 9 8 11 8 Largest Inventory Capacity 30 | 5 20 25 25 25 25 25 25 25 25 30 25 Average Capacity 23 | 5 16 23 25 25 25 25 25 25 25 25 25 Most Carried 25 | 5 20 25 25 25 25 25 25 25 25 25 25 Average Carried 23 | 3 15 23 24 24 24 24 24 24 24 24 22 Final Capacity 25 | 5 20 25 25 25 25 25 25 25 25 25 25 Final Carried 25 | 5 20 25 25 25 25 25 25 25 25 25 10 Class Distribution -------------------- 39% | Scavenger-Tank 19% | Tank 16% | Gunner 11% | Mutant 6% | Scavenger-Gunner Dominant Class ---------------- Mutant | -10/Materials Gunner | -9/Materials Gunner | -8/Materials Tank | -8/Garrison Tank | -7/Factory Scavenger-Tank | -7/Garrison Commander-Tank | -7/Factory Tank | -7/Garrison Scavenger-Tank | -7/Factory Scavenger-Tank | -7/Garrison Scavenger-Executioner | -7/Factory Resources | -11 -10 -9 -8 -8 -7 -7 -7 -7 -7 -7 -7 ----------- Run | Yrd Mat Mat Mat Gar Fac Gar Fac Gar Fac Gar Fac Matter Collected 16294 | 317 295 3079 2565 2009 92 1774 502 1163 898 2699 901 Remotely . | . . . . . . . . . . . . Salvage Created 19595 | 276 712 2952 3432 2191 111 1062 653 944 870 2819 3573 Parts 994 | 19 38 172 167 148 10 46 31 42 37 157 127 Haulers Intercepted 11 | . 2 6 3 . . . . . . . . Recyclers Shooed 9 | 1 1 3 4 . . . . . . . . Parts Field Recycled . | . . . . . . . . . . . . Retrieved Matter . | . . . . . . . . . . . . Parts Self-Destructed . | . . . . . . . . . . . . Prevented . | . . . . . . . . . . . . Parts Restored . | . . . . . . . . . . . . Kills | -11 -10 -9 -8 -8 -7 -7 -7 -7 -7 -7 -7 ------- Run | Yrd Mat Mat Mat Gar Fac Gar Fac Gar Fac Gar Fac Combat Hostiles Destroyed 365 | . 14 53 57 39 1 25 10 30 21 42 73 Guns 286 | . 13 53 56 39 1 18 10 18 19 42 17 Cannons 11 | . . . 1 . . . . 6 . . 4 AOE 59 | . . . . . . 7 . 5 2 . 45 Classes Destroyed 18 | 3 4 4 4 2 . . . 1 . . . Worker 17 | 2 . 6 4 . 1 . 1 . 2 . 1 Builder 2 | . 1 . 1 . . . . . . . . Tunneler 10 | 7 . 1 1 . 1 . . . . . . Hauler 11 | . 2 6 3 . . . . . . . . Recycler 16 | 1 2 5 5 . . . 2 . . . 1 Mechanic 10 | . . . 1 . . . . . . . 9 Operator 4 | . . 2 1 . . . . . 1 . . Watcher 8 | . . 4 3 . . . . . . 1 . Swarmer 64 | . 6 7 7 15 . 8 2 11 3 3 2 Grunt 171 | . 8 38 34 7 . 12 5 7 11 15 34 Brawler 9 | . . 1 . . . 1 . . 1 . 6 Duelist 13 | . . . 3 . . 1 2 1 1 1 4 Protector 11 | . . . 2 . . . 1 . . . 8 Sentry 44 | . . 7 10 8 1 2 . 4 . 12 . Demolisher 1 | . . . . 1 . . . . . . . Specialist 9 | . . . . . . . . 5 3 1 . Hunter 21 | . . . 1 7 . 1 . . 1 1 10 Programmer 23 | . . . . 1 . . 1 2 1 9 9 Best Kill Streak 22 | 3 4 8 12 9 3 10 4 7 5 8 22 Combat Bots Only 20 | . 3 7 11 9 1 10 3 7 5 8 20 Max Kills in Single Turn 5 | 1 2 4 2 3 1 5 2 3 3 3 4 Gunslinging 2 | . 1 1 1 1 . 1 . 1 . 2 1 Exploded 5 | . . . . . . 5 . 3 2 . 4 Melee . | . . . . . . . . . . . . Uniques/NPCs Destroyed . | . . . . . . . . . . . . Combat | -11 -10 -9 -8 -8 -7 -7 -7 -7 -7 -7 -7 -------- Run | Yrd Mat Mat Mat Gar Fac Gar Fac Gar Fac Gar Fac Hostile Shots Fired 2019 | . 81 125 219 188 18 153 21 186 107 379 542 Missed 652 | . 23 44 57 53 7 55 5 71 40 134 163 Hits 1367 | . 58 81 162 135 11 98 16 115 67 245 379 Melee 20 | . . . 4 . . 8 1 . 5 . 2 Projectile 1347 | . 58 81 158 135 11 90 15 115 62 245 377 AOE 2 | . . . . . . . 1 . . . 1 Critical Strikes 51 | . 3 2 8 4 . 9 . 1 1 6 17 Part Disruptions 2 | . . . . . . . . 1 . . 1 Damage Taken 15455 | . 596 997 2574 1626 53 1083 158 705 659 1141 5863 Core 1533 | . 63 142 290 101 4 103 14 28 33 93 662 Absorbed by Shields 3370 | . . . . 84 25 392 165 763 701 1240 . Ignored by Resistances 709 | . . . . . . . . . . . 709 Regen/Repaired (Parts) 396 | . . 140 256 . . . . . . . . Core Remaining (%) 82 | 100 74 76 . 79 . . . . . . . Volleys Fired 865 | 67 82 124 146 80 7 59 23 65 42 81 89 Largest 6 | 1 2 4 4 4 4 4 4 4 4 4 6 Hottest 400 | 20 100 113 106 97 92 107 112 121 112 112 400 Shots Fired 2737 | 67 156 492 578 300 25 199 81 172 168 286 213 Gun 2566 | 67 148 492 550 300 24 197 81 141 168 286 112 Cannon 83 | . . . 28 . . . . 29 . . 26 Launcher 79 | . . . . . . 2 . 2 . . 75 Special 9 | . 8 . . . 1 . . . . . . Kinetic 2546 | 67 113 484 578 300 24 197 81 170 168 286 78 Thermal 97 | . 29 8 . . . . . . . . 60 Explosive 23 | . . . . . . 2 . 2 . . 19 Electromagnetic 70 | . 14 . . . . . . . . . 56 Robot Hit Streak 23 | 11 13 23 22 16 5 18 11 9 7 9 13 Robot Miss Streak 25 | 3 5 4 5 3 1 6 7 12 25 7 20 Penetration Max 1 | . . . . 1 . 1 1 1 . 1 . Secondary Targets 68 | . 1 6 9 9 1 5 2 7 8 11 9 Max Gunslinging Chain 2 | . 1 1 2 1 1 2 1 1 1 2 2 Shots Hit Robots 1845 | 51 92 296 382 218 14 122 46 114 125 241 144 Core Hits 1191 | 17 39 121 157 89 6 56 45 105 90 197 269 Critical Kills . | . . . . . . . . . . . . Critical Parts Destroyed 15 | 2 . 3 5 1 . 1 . . . 2 1 Critical Strikes 17 | 2 . 3 6 1 . 1 . 1 . 2 1 Destroy 15 | 2 . 3 5 1 . 1 . . . 2 1 Blast 2 | . . . 1 . . . . 1 . . . Melee Attacks 134 | . . 1 . 54 . 17 1 6 1 52 2 Impact 5 | . . . . . . 5 . . . . . Slashing 129 | . . 1 . 54 . 12 1 6 1 52 2 Piercing . | . . . . . . . . . . . . Sneak Attacks 3 | . . . . . . . . . 1 . 2 Combat Hostiles . | . . . . . . . . . . . . Follow-up Attacks . | . . . . . . . . . . . . Damage Inflicted 44334 | 397 865 4417 6062 4189 189 2981 927 3532 2397 6091 12287 Guns 26577 | 397 862 4394 5740 2619 189 2117 927 1867 1975 3714 1776 Cannons 1896 | . . . 322 . . . . 1146 . . 428 Explosions 11391 | . . . . . . 611 . 459 362 . 9959 Melee 4444 | . . . . 1570 . 253 . 60 60 2377 124 Ramming 26 | . 3 23 . . . . . . . . . Kinetic 26908 | 397 542 4343 6062 2619 189 2117 927 3013 1975 3714 1010 Thermal 2262 | . 167 51 . . . . . . 362 . 1682 Explosive 6521 | . . . . . . 611 . 459 . . 5451 Electromagnetic 4173 | . 153 . . . . . . . . . 4020 Impact . | . . . . . . . . . . . . Slashing 4444 | . . . . 1570 . 253 . 60 60 2377 124 Piercing . | . . . . . . . . . . . . Highest Corruption 17 | . . 4 1 1 . 5 2 15 3 9 17 Average Corruption 5 | . . 4 1 1 . 4 1 10 1 7 8 Corruption Purged . | . . . . . . . . . . . . Corruption Blocked . | . . . . . . . . . . . . Effects 216 | . . 42 . . . 41 2 42 9 53 27 Message Errors 44 | . . 10 . . . 8 . 10 1 12 3 Matter Fused 52 | . . 9 . . . 11 1 12 1 11 7 Heat Flow Errors 27 | . . 5 . . . 7 . 4 1 9 1 Energy Discharges 31 | . . 7 . . . 8 . 5 1 6 4 Parts Rejected 2 | . . . . . . . . . . . 2 Parts Fused 4 | . . . . . . 1 . . . 3 . Data Loss (minor) 25 | . . 7 . . . 5 1 3 2 5 2 Data Loss (major) 9 | . . 1 . . . 1 . 2 1 2 2 Misfires 7 | . . 2 . . . . . 2 1 2 . Alerts 6 | . . . . . . . . 3 . 2 1 Misdirections 1 | . . . . . . . . . . . 1 Weapon Failures 8 | . . 1 . . . . . 1 1 1 4 Overload Shots . | . . . . . . . . . . . . Overflow Damage 583 | . . . 10 35 . 111 . 263 2 62 100 Projectiles 202 | . . . 10 . . . . 192 . . . Explosions 210 | . . . . . . 69 . 71 2 . 68 Melee 171 | . . . . 35 . 42 . . . 62 32 Knockbacks 8 | . . . 3 . . . . 5 . . . Impact . | . . . . . . . . . . . . Kinetic 6 | . . . 3 . . . . 3 . . . Secondary 2 | . . . . . . . . 2 . . . Self-Inflicted Damage 816 | . . . . . . . . 51 236 . 529 Shots 35 | . . . . . . . . 2 4 . 29 Rammed 10 | . 2 8 . . . . . . . . . Targets Rammed 10 | . 2 8 . . . . . . . . . Kicked . | . . . . . . . . . . . . Crushed . | . . . . . . . . . . . . Highest Temperature 492 | . 184 492 12 10 . 245 72 149 279 228 300 Average Temperature 74 | . 41 84 4 7 . 87 39 49 139 41 107 Received Heat Transfer 4442 | . 225 465 1347 258 12 319 16 89 152 254 1305 Effects 12 | . . 11 . . . . . . . . 1 Energy Bleed 2 | . . 1 . . . . . . . . 1 Interference 5 | . . 5 . . . . . . . . . Matter Decay 1 | . . 1 . . . . . . . . . Damage (minor) 1 | . . 1 . . . . . . . . . Damage (major) 3 | . . 3 . . . . . . . . . Siege Activations . | . . . . . . . . . . . . Martial Activations . | . . . . . . . . . . . . Shielding Activations . | . . . . . . . . . . . . Robots Disrupted 1 | . . . . . . . . . . . 1 Combat Hostiles . | . . . . . . . . . . . . Robots Corrupted 8 | . 1 . . . . . . . . . 7 Combat Hostiles 8 | . 1 . . . . . . . . . 7 Parts Fried 27 | . 1 . . . . . . . . . 26 Impact Corruptions . | . . . . . . . . . . . . Robots Melted . | . . . . . . . . . . . . Combat Hostiles . | . . . . . . . . . . . . Parts Melted 11 | . . 2 . . . . . . 2 . 7 Heat Transferred 3706 | . 444 148 . . . . . . 350 . 2764 Parts Sabotaged . | . . . . . . . . . . . . Parts Stolen . | . . . . . . . . . . . . Parts Stripped . | . . . . . . . . . . . . Power Chain Reactions 9 | . . . . . . . . . . . 9 Alert | -11 -10 -9 -8 -8 -7 -7 -7 -7 -7 -7 -7 ------- Run | Yrd Mat Mat Mat Gar Fac Gar Fac Gar Fac Gar Fac Maximum Alert Level 5 | . 1 4 4 5 4 5 4 5 4 5 5 Low Security (%) 10 | 100 59 21 . . . . . . . . . Level 1 9 | . 40 38 . . . . . . . . . Level 2 7 | . . 16 49 . . . . . . . . Level 3 10 | . . 13 27 10 . 13 . 12 21 2 . Level 4 27 | . . 10 23 31 100 32 100 36 78 23 8 Level 5 29 | . . . . 58 . 53 . 51 . 74 1 High Security 5 | . . . . . . . . . . . 90 Max Security . | . . . . . . . . . . . . Sterilizations 2 | . . 1 1 . . . . . . . . Peak Influence 3958 | 10 283 1228 1536 2456 1289 2782 1515 2155 1562 3006 3958 Initial 1577 | . . 79 515 990 1289 898 1460 988 1131 1089 1577 Average 1294 | 2 121 455 814 1701 1264 1766 1444 1566 1204 1979 2509 Influence Increases 14998 | 50 554 1856 1731 1536 105 2054 366 1217 801 1967 2761 Destroy 0b10 Robot/C 7680 | . 280 1060 1140 780 20 760 180 620 420 840 1580 Destroy 0b10 Robot/NC 565 | 50 25 120 110 30 10 10 25 5 15 45 120 Destroy Leader 1140 | . 64 270 262 30 10 30 32 40 90 70 242 Allied During Kill 323 | . . 20 35 10 5 76 80 2 . 1 94 Successful Hack 118 | . 19 13 6 . 8 30 14 . . 28 . Select Force Hacks 420 | . 60 260 . . 50 . . . 50 . . Disable Machine 690 | . . 75 15 15 . 30 . 30 180 15 330 Anti-Garrison Action 2950 | . . . . 600 . 1050 . 400 . 900 . Destroy Structure 437 | . 1 8 13 41 2 53 5 105 31 53 125 Partial Spotted 15 | . 15 . . . . . . . . . . Lose Combat Pursuer 660 | . 90 30 150 30 . 15 30 15 15 15 270 Influence Decreases 11100 | 50 365 824 1428 604 1277 556 1736 474 1400 517 1869 Entered New Map 7569 | . . 110 706 534 1167 386 1322 424 1024 467 1429 Time Decay 2461 | 50 335 674 592 . 110 . 294 . 356 . 50 Lost Part 460 | . 20 . 30 50 . 30 . 10 20 30 270 Lost Ally 610 | . 10 40 100 20 . 140 120 40 . 20 120 Squads Dispatched 78 | . 2 14 14 . 2 . 2 . 9 . 35 Investigation 20 | . 2 11 2 . 2 . 1 . 2 . . Extermination 2 | . . . . . . . . . 2 . . Reinforcement 12 | . . 3 5 . . . . . 3 . 1 Assault 39 | . . . 5 . . . 1 . . . 33 Garrison 5 | . . . 2 . . . . . 2 . 1 Intercept . | . . . . . . . . . . . . Searches Triggered . | . . . . . . . . . . . . Construction Impeded 3 | . . . 2 . . . . . 1 . . Haulers Reinforced . | . . . . . . . . . . . . Active Scanning Responses . | . . . . . . . . . . . . Cargo Convoy Interrupts . | . . . . . . . . . . . . Stealth | -11 -10 -9 -8 -8 -7 -7 -7 -7 -7 -7 -7 --------- Run | Yrd Mat Mat Mat Gar Fac Gar Fac Gar Fac Gar Fac Distress Signals 27 | . 6 6 7 . . . 1 . . 1 6 Communications Jammed . | . . . . . . . . . . . . Distress Signals . | . . . . . . . . . . . . Times Spotted 570 | . 38 64 99 43 3 41 16 34 29 52 151 Peak Tracking Total 22 | . 6 4 11 10 1 12 8 6 4 5 22 Tactical Retreats 27 | . 4 2 7 2 . 1 1 1 1 1 7 Traps | -11 -10 -9 -8 -8 -7 -7 -7 -7 -7 -7 -7 ------- Run | Yrd Mat Mat Mat Gar Fac Gar Fac Gar Fac Gar Fac Traps Triggered 27 | . 1 1 . 3 . 9 1 4 1 7 . Indirectly . | . . . . . . . . . . . . Trap Hack Attempts . | . . . . . . . . . . . . Triggered . | . . . . . . . . . . . . Disarmed . | . . . . . . . . . . . . Reprogrammed . | . . . . . . . . . . . . Reused . | . . . . . . . . . . . . Traps Extracted . | . . . . . . . . . . . . Installed . | . . . . . . . . . . . . Triggered . | . . . . . . . . . . . . Machines | -11 -10 -9 -8 -8 -7 -7 -7 -7 -7 -7 -7 ---------- Run | Yrd Mat Mat Mat Gar Fac Gar Fac Gar Fac Gar Fac Machines Disabled 69 | . . 5 1 8 . 6 . 8 12 7 22 Max in Single Turn 12 | . . 2 1 2 . 1 . 2 12 1 4 Garrison Relay 19 | . . . . 5 . 4 . 4 . 6 . Phase Generator 2 | . . . . 1 . . . 1 . . . Machines Repaired . | . . . . . . . . . . . . Machines Dismantled . | . . . . . . . . . . . . Machines Sabotaged 5 | . . 4 . . 1 . . . . . . Overloaded Fab Kills 1 | . . . . . . . . . 1 . . Hacking | -11 -10 -9 -8 -8 -7 -7 -7 -7 -7 -7 -7 --------- Run | Yrd Mat Mat Mat Gar Fac Gar Fac Gar Fac Gar Fac Machines Accessed 48 | . 9 13 7 2 2 4 2 1 6 2 . Terminals 34 | . 7 9 3 2 1 4 1 1 4 2 . Fabricators 1 | . . . . . . . . . 1 . . Repair Stations 3 | . . 1 2 . . . . . . . . Recycling Units 3 | . 2 1 . . . . . . . . . Scanalyzers 3 | . . 2 1 . . . . . . . . Garrison Access 4 | . . . 1 . 1 . 1 . 1 . . Total Hacks 119 | . 24 30 23 6 7 7 4 2 10 6 . Successful 57 | . 14 19 6 2 3 4 1 2 3 3 . Failed 60 | . 10 10 16 4 4 3 3 . 7 3 . Catastrophic 15 | . . 3 3 1 1 2 1 . 3 1 . Database Lockouts 2 | . . 1 1 . . . . . . . . Manual 63 | . 16 18 14 2 5 2 1 1 3 1 . Terminals 83 | . 20 21 10 6 3 7 1 2 7 6 . Fabricators 2 | . . . . . . . . . 2 . . Repair Stations 7 | . . 1 6 . . . . . . . . Recycling Units 5 | . 4 1 . . . . . . . . . Scanalyzers 12 | . . 7 5 . . . . . . . . Garrison Access 10 | . . . 2 . 4 . 3 . 1 . . Terminal Hacks 21 | . 8 7 . 1 . 2 . 1 . 2 . Part Schematic 2 | . 2 . . . . . . . . . . Prototype ID Bank 6 | . 4 2 . . . . . . . . . Branch Access Points 2 | . 1 1 . . . . . . . . . Emergency Access Points 3 | . . . . 1 . . . 1 . 1 . Recycling Unit Index 1 | . 1 . . . . . . . . . . Locate Traps 4 | . . 4 . . . . . . . . . Patrol Navigation 2 | . . . . . . 1 . . . 1 . Security Stations 1 | . . . . . . 1 . . . . . Fabricator Hacks 1 | . . . . . . . . . 1 . . Network Status 1 | . . . . . . . . . 1 . . Repair Station Hacks 2 | . . . 2 . . . . . . . . Scan Component 1 | . . . 1 . . . . . . . . Repair 1 | . . . 1 . . . . . . . . Recycling Unit Hacks 1 | . 1 . . . . . . . . . . Retrieve Components 1 | . 1 . . . . . . . . . . Scanalyzer 5 | . . 3 2 . . . . . . . . Retrieve Study 5 | . . 3 2 . . . . . . . . Garrison Access Hacks 4 | . . . 1 . 1 . 1 . 1 . . Unlock Access 4 | . . . 1 . 1 . 1 . 1 . . Unauthorized Hacks 23 | . 5 9 1 1 2 2 . 1 1 1 . Terminals 15 | . 3 6 . 1 1 2 . 1 . 1 . Assimilate 2 | . 2 . . . . . . . . . . Botnet 1 | . 1 . . . . . . . . . . Sabotage 8 | . . 6 . . 1 1 . . . . . Override 4 | . . . . 1 . 1 . 1 . 1 . Fabricators 1 | . . . . . . . . . 1 . . Overload 1 | . . . . . . . . . 1 . . Repair Stations 2 | . . 1 1 . . . . . . . . Patch 2 | . . 1 1 . . . . . . . . Recycling Units 3 | . 2 1 . . . . . . . . . Tunnel 3 | . 2 1 . . . . . . . . . Scanalyzers 1 | . . 1 . . . . . . . . . Extract 1 | . . 1 . . . . . . . . . Garrison Access 1 | . . . . . 1 . . . . . . Reprogram 1 | . . . . . 1 . . . . . . Data Cores Recovered . | . . . . . . . . . . . . Used . | . . . . . . . . . . . . Hacking Detections 36 | . 7 5 7 2 2 3 2 1 5 2 . Full Trace Events 9 | . . 2 2 1 . 1 1 . 1 1 . Feedback Events 3 | . . . 1 1 . . . . 1 . . Corruption 3 | . . . 1 1 . . . . 1 . . Feedback Blocked . | . . . . . . . . . . . . Robot Schematics Acquired . | . . . . . . . . . . . . Robots Built . | . . . . . . . . . . . . Authchips . | . . . . . . . . . . . . Time . | . . . . . . . . . . . . Total Robot Build Rating . | . . . . . . . . . . . . Part Schematics Acquired 9 | . 2 7 . . . . . . . . . Parts Built . | . . . . . . . . . . . . Authchips . | . . . . . . . . . . . . Time . | . . . . . . . . . . . . Total Part Build Rating . | . . . . . . . . . . . . Part Studies Acquired 5 | . . 3 2 . . . . . . . . Parts Repaired 1 | . . . 1 . . . . . . . . Time 38 | . . . 38 . . . . . . . . Parts Recycled . | . . . . . . . . . . . . Recycled Matter . | . . . . . . . . . . . . Retrieved Matter . | . . . . . . . . . . . . Retrieved Components 9 | . 9 . . . . . . . . . . Parts Scanalyzed . | . . . . . . . . . . . . Part Schematics Acquired . | . . . . . . . . . . . . Parts Damaged . | . . . . . . . . . . . . Bothacking | -11 -10 -9 -8 -8 -7 -7 -7 -7 -7 -7 -7 ------------ Run | Yrd Mat Mat Mat Gar Fac Gar Fac Gar Fac Gar Fac Used RIF Installer . | . . . . . . . . . . . . Robots Hacked 1 | . . . . . 1 . . . . . . Non-combat 1 | . . . . . 1 . . . . . . Combat . | . . . . . . . . . . . . Robot Hacks Applied 1 | . . . . . 1 . . . . . . find_chute 1 | . . . . . 1 . . . . . . Relay Couplers Released 75 | . . . . 19 . 16 . 15 . 25 . Machine Destruction 75 | . . . . 19 . 16 . 15 . 25 . Fabnet Peak Effective % . | . . . . . . . . . . . . Robots Rewired 12 | . . . . 3 . 6 . . . 3 . Allies Hacked . | . . . . . . . . . . . . Hacks Repelled . | . . . . . . . . . . . . Allies | -11 -10 -9 -8 -8 -7 -7 -7 -7 -7 -7 -7 -------- Run | Yrd Mat Mat Mat Gar Fac Gar Fac Gar Fac Gar Fac Total Allies 38 | . 1 5 6 3 3 10 . 2 . 6 2 Largest Group 8 | . 1 3 4 2 5 7 8 2 . 5 5 Highest-Rated Group 250 | . 10 30 84 51 99 234 250 56 . 250 250 Highest-Rated Ally 142 | . 10 17 29 31 31 80 80 31 . 80 142 Initial Warlord ECA Mod 36 | . . . . . 9 9 17 17 26 26 36 Total Orders . | . . . . . . . . . . . . Ally Attacks 241 | . . 23 27 1 2 77 34 6 . 2 69 Total Damage 6243 | . . 155 724 . . 1664 502 200 . 31 2967 Kills 39 | . . . 3 . . 14 2 1 . . 19 Allies Corrupted . | . . . . . . . . . . . . Allies Melted . | . . . . . . . . . . . . X0-1V1 Amusement Gains 156 | . 18 104 28 . . . . 6 . . . Good Acts 96 | . . 14 23 4 1 18 4 4 3 17 8 Bad Acts 43 | . . 4 2 9 . 6 1 5 6 10 . Intel | -11 -10 -9 -8 -8 -7 -7 -7 -7 -7 -7 -7 ------- Run | Yrd Mat Mat Mat Gar Fac Gar Fac Gar Fac Gar Fac Active Infowar (turns) 871 | 111 306 . . . . . 2 . 353 99 . IFF 452 | . . . . . . . . . 353 99 . Terrain 280 | 65 215 . . . . . . . . . . Seismic 417 | 111 306 . . . . . . . . . . Machine Analysis 2 | . . . . . . . 2 . . . . Robot Analysis Total . | . . . . . . . . . . . . Derelict Logs Recovered . | . . . . . . . . . . . . Drone Launches . | . . . . . . . . . . . . Drone Recoveries . | . . . . . . . . . . . . Exploration | -11 -10 -9 -8 -8 -7 -7 -7 -7 -7 -7 -7 ------------- Run | Yrd Mat Mat Mat Gar Fac Gar Fac Gar Fac Gar Fac Turns Passed 18335 | 224 1875 2713 1871 1995 229 2836 650 1499 811 2521 1111 Spaces Moved 6680 | 174 791 877 769 727 128 1050 256 517 283 766 342 Core 344 | 171 173 . . . . . . . . . . Treads 1673 | 3 618 567 51 432 . 1 . . . . 1 Legs . | . . . . . . . . . . . . Wheels 4663 | . . 310 718 295 128 1049 256 517 283 766 341 Hover . | . . . . . . . . . . . . Flight . | . . . . . . . . . . . . Fastest Speed 50 | 50 50 130 145 135 160 160 210 210 210 225 180 Average Speed 209 | 51 185 236 151 206 160 230 217 232 224 247 222 Slowest Speed 560 | 160 320 320 250 250 160 410 225 240 225 295 560 Overloaded Moves . | . . . . . . . . . . . . Propulsion Burnouts . | . . . . . . . . . . . . Robots Hopped . | . . . . . . . . . . . . Potential Cave-ins . | . . . . . . . . . . . . Cave-ins Triggered . | . . . . . . . . . . . . Exploration Rate (%) 54 | 5 98 75 73 82 4 93 9 94 9 87 19 Regions Visited 11 Branch Regions . Pre-discovered Areas 3 | . 2 1 . . . . . . . . . Known Exits Taken 5 | . . 1 1 . 1 . 1 . 1 . . Unknown Exits Taken 2 | 1 1 . . . . . . . . . . Scrap Searched . | . . . . . . . . . . . . Spaces Dug 10 | . 2 1 . . . 2 1 1 . 3 . Terrain Destroyed 362 | . 2 1 5 6 . 31 1 90 31 8 187 Melee 8 | . . 1 . . . 2 1 1 . 3 . Projectile 23 | . 2 . 5 . . 1 . 10 . 5 . AOE 331 | . . . . 6 . 28 . 79 31 . 187 Terrain Rammed . | . . . . . . . . . . . . Walls Destroyed . | . . . . . . . . . . . . Machines Disabled . | . . . . . . . . . . . . Actions | -11 -10 -9 -8 -8 -7 -7 -7 -7 -7 -7 -7 --------- Run | Yrd Mat Mat Mat Gar Fac Gar Fac Gar Fac Gar Fac Total 9107 | 251 1047 1244 1159 991 142 1326 300 666 352 1129 500 Wait 414 | . 110 115 103 13 . 12 1 12 4 42 2 Move 6671 | 173 790 876 768 726 127 1049 256 516 283 765 342 Hop . | . . . . . . . . . . . . Pick Up 211 | 6 28 33 45 18 3 23 5 9 9 21 11 Fast Attach 29 | 4 3 5 1 . . 6 1 3 1 1 4 Attach 75 | 1 6 3 10 8 3 5 . 5 4 6 24 Detach 13 | . 2 . . . . 1 . 2 . 1 7 Swap 215 | . 13 33 33 41 1 31 6 12 2 29 14 Drop 209 | . 11 46 53 21 1 27 7 12 6 20 5 Fire 865 | 67 82 124 146 80 7 59 23 65 42 81 89 Melee 134 | . . 1 . 54 . 17 1 6 1 52 2 Ram . | . . . . . . . . . . . . Kick . | . . . . . . . . . . . . Crush 10 | . 2 8 . . . . . . . . . Escape Stasis 128 | . . . . 16 . 32 . 24 . 56 . Rewire 133 | . . . . 14 . 64 . . . 55 . Trap . | . . . . . . . . . . . . Miscellaneous . | . . . . . . . . . . . . Route ------- -11/Scrapyard -10/Materials (discovered 6 exits: *Mat x3 / *Min x2 / [*Sub]) -9/Materials (discovered 4 exits: *Mat x2 / *Min x2) -8/Materials (discovered 5 exits: *Fac x3 / [*Sto] / Gar) -8/Garrison (discovered 3 exits: *Fac x3) -7/Factory -7/Garrison (discovered 4 exits: *Fac x4) -7/Factory (discovered 2 exits: Fac / Gar) -7/Garrison (discovered 3 exits: *Fac x3) -7/Factory -7/Garrison (discovered 3 exits: *Fac x3) -7/Factory History --------- Turn | Location | Event 18 | -11/Scrapyard | Discovered new exit (range 16) 225 | -11/Scrapyard | Entered Materials 258 | -10/Materials | Discovered new exit (range 9) 288 | -10/Materials | Discovered new exit (range 7) 329 | -10/Materials | Build established: Mutant 855 | -10/Materials | Discovered new exit (range 4) 1660 | -10/Materials | Discovered new exit (range 7) 1672 | -10/Materials | Identified exit to Mines 1987 | -10/Materials | Discovered new exit (range 16) 2069 | -10/Materials | Discovered new exit (range 3) 2076 | -10/Materials | Prayed at D.C.S.S. Altar Unit 2100 | -10/Materials | Entered another Materials area 2100 | -9/Materials | Evolved 2 slots: Weapon x2 2139 | -9/Materials | X0-1V1 sent you to a vault 2391 | -9/Materials | Lost 3 allies 2398 | -9/Materials | Identified exit to Mines 2398 | -9/Materials | X0-1V1 revealed exit location to -9/Mines 2411 | -9/Materials | Build established: Scavenger-Gunner 2502 | -9/Materials | X0-1V1 sent allied G-34 Mercenary (x2) 2715 | -9/Materials | Destroyed 7 combat bots 2785 | -9/Materials | Build established: Gunner 3025 | -9/Materials | Discovered new exit (range 16) 3074 | -9/Materials | Identified exit to Materials 3592 | -9/Materials | Central database locked down 3831 | -9/Materials | Core integrity permanently improved by X0-1V1 (+200) 4257 | -9/Materials | X0-1V1 vaporized surrounding terrain (radius 16) 4272 | -9/Materials | X0-1V1 foreshadows a heat wave 4405 | -9/Materials | Ambient heat levels rising (+10) 4586 | -9/Materials | Ambient heat levels rising (+10) 4637 | -9/Materials | Discovered exit to Materials (range 16) 4717 | -9/Materials | Ambient heat levels falling (-10) 4721 | -9/Materials | Sterilization system engaged 4721 | -9/Materials | Non-combat units ordered to evacuate 4813 | -9/Materials | Entered another Materials area 4813 | -8/Materials | Evolved 2 slots: Utility x2 4936 | -8/Materials | Heat dissipation permanently improved by X0-1V1 (+30; -150 max core) 5441 | -8/Materials | X0-1V1 activates XOMVISION 5613 | -8/Materials | First assault squad dispatched 5670 | -8/Materials | X0-1V1 sent you to a vault 5799 | -8/Materials | Discovered new exit (range 8) 5980 | -8/Materials | Repaired Hrd. Medium Armor Plating? 5998 | -8/Materials | Build established: Scavenger-Gunner 6101 | -8/Materials | X0-1V1 downgraded hostiles (x2) 6203 | -8/Materials | Garrison activated, responded to threat 6281 | -8/Materials | Central database locked down 6291 | -8/Materials | Discovered new exit (range 10) 6329 | -8/Materials | Identified exit to Garrison 6385 | -8/Materials | Identified exit to Factory 6385 | -8/Materials | X0-1V1 revealed exit location to -7/Factory 6429 | -8/Materials | X0-1V1 turns hostiles against one another 6453 | -8/Materials | Garrison activated, responded to threat 6484 | -8/Materials | X0-1V1 downgraded hostiles (x2) 6509 | -8/Materials | Sterilization system engaged 6509 | -8/Materials | Non-combat units ordered to evacuate 6545 | -8/Materials | Destroyed 11 combat bots 6580 | -8/Materials | X0-1V1 activates XOMVISION 6609 | -8/Materials | Combat units ordered to evacuate 6659 | -8/Materials | X0-1V1 revealed exit location to -7/Factory 6684 | -8/Materials | Entered Garrison 6706 | -8/Garrison | Core integrity restored by X0-1V1 (+168) 6826 | -8/Garrison | Build established: Tank 6897 | -8/Garrison | Garrison Relay disabled 6997 | -8/Garrison | X0-1V1 sent hostile Y-45 Defender (x2) 7041 | -8/Garrison | Destroyed 9 combat bots 7070 | -8/Garrison | Triggered checkpoint 7154 | -8/Garrison | Energy generation permanently improved by X0-1V1 (+20; -200 max core) 7200 | -8/Garrison | Triggered checkpoint 7230 | -8/Garrison | Triggered checkpoint 7506 | -8/Garrison | Triggered checkpoint 7547 | -8/Garrison | Garrison Relay disabled 7924 | -8/Garrison | Triggered checkpoint 7935 | -8/Garrison | X0-1V1 sent hostile H-55 Commando (x3) 7968 | -8/Garrison | Garrison Relay disabled 8009 | -8/Garrison | Build established: Scavenger-Tank 8109 | -8/Garrison | Garrison Relay disabled 8346 | -8/Garrison | Triggered checkpoint 8483 | -8/Garrison | Garrison Relay disabled 8573 | -8/Garrison | Phase Generator disabled 8639 | -8/Garrison | X0-1V1 sent hostile H-55 Commando (x3) 8679 | -8/Garrison | Entered Factory 8679 | -7/Factory | Accompanied by 2 allies 8679 | -7/Factory | Evolved 2 slots: Power x1, Utility x1 8701 | -7/Factory | Build established: Tank 8857 | -7/Factory | X0-1V1 released a cloud of subatomizers 8877 | -7/Factory | Identified exit to Garrison 8908 | -7/Factory | Entered Garrison 8908 | -7/Garrison | Accompanied by 5 allies 8913 | -7/Garrison | X0-1V1 mutated your Propulsion slot to Utility slot 9107 | -7/Garrison | X0-1V1 whisked you away to safety 9136 | -7/Garrison | Lost 3 allies 9198 | -7/Garrison | Rescued a captive Derelict 9201 | -7/Garrison | Rescued a captive Derelict 9286 | -7/Garrison | Triggered checkpoint 9330 | -7/Garrison | Destroyed 10 combat bots 9385 | -7/Garrison | Build established: Scavenger-Tank 9430 | -7/Garrison | Triggered checkpoint 9481 | -7/Garrison | Discovered new exit (range 6) 9523 | -7/Garrison | Discovered new exit (range 10) 9600 | -7/Garrison | X0-1V1 activates XOMVISION 9638 | -7/Garrison | Garrison Relay disabled 9904 | -7/Garrison | Triggered checkpoint 9945 | -7/Garrison | Found embedded Infiltrators 9951 | -7/Garrison | Garrison Relay disabled 10071 | -7/Garrison | Discovered new exit (range 8) 10212 | -7/Garrison | Triggered checkpoint 10379 | -7/Garrison | Identified exit to Factory 10382 | -7/Garrison | X0-1V1 sent hostile H-55 Commando (x2) 10467 | -7/Garrison | Triggered checkpoint 10531 | -7/Garrison | Garrison Relay disabled 10558 | -7/Garrison | Triggered checkpoint 10616 | -7/Garrison | Learned Factory security intel 10848 | -7/Garrison | Triggered checkpoint 10893 | -7/Garrison | X0-1V1 activates XOMVISION 10973 | -7/Garrison | Garrison Relay disabled 11040 | -7/Garrison | X0-1V1 sent you into danger 11216 | -7/Garrison | Triggered checkpoint 11228 | -7/Garrison | Triggered checkpoint 11422 | -7/Garrison | Triggered checkpoint 11716 | -7/Garrison | X0-1V1 activates XOMVISION 11744 | -7/Garrison | Entered Factory 11744 | -7/Factory | Accompanied by 8 allies 12062 | -7/Factory | Build established: Commander-Tank 12098 | -7/Factory | Identified exit to Factory 12098 | -7/Factory | X0-1V1 revealed exit location to -6/Factory 12144 | -7/Factory | First assault squad dispatched 12145 | -7/Factory | X0-1V1 announced a LAN party 12250 | -7/Factory | Lost 5 allies 12394 | -7/Factory | Identified exit to Garrison 12394 | -7/Factory | Entered Garrison 12540 | -7/Garrison | Triggered checkpoint 12579 | -7/Garrison | Identified exit to Factory 12581 | -7/Garrison | Garrison Relay disabled 12826 | -7/Garrison | System corruption reached 10% 12846 | -7/Garrison | Triggered checkpoint 12867 | -7/Garrison | Triggered checkpoint 12899 | -7/Garrison | Destroyed 7 combat bots 12936 | -7/Garrison | Build established: Tank 12946 | -7/Garrison | Triggered checkpoint 12978 | -7/Garrison | Garrison Relay disabled 13127 | -7/Garrison | Phase Generator disabled 13304 | -7/Garrison | Triggered checkpoint 13314 | -7/Garrison | Rescued a captive Derelict 13314 | -7/Garrison | Rescued a captive Derelict 13405 | -7/Garrison | Garrison Relay disabled 13529 | -7/Garrison | X0-1V1 sent hostile X-57 Shotgunner (x3) 13692 | -7/Garrison | Garrison Relay disabled 13714 | -7/Garrison | Triggered checkpoint 13827 | -7/Garrison | X0-1V1 activates XOMVISION 13867 | -7/Garrison | Build established: Scavenger-Tank 13893 | -7/Garrison | Entered Factory 14100 | -7/Factory | X0-1V1 announced a LAN party 14478 | -7/Factory | X0-1V1 sent hostile X-62 Marksman (x3) 14540 | -7/Factory | Garrison activated, responded to threat 14704 | -7/Factory | Identified exit to Garrison 14704 | -7/Factory | Entered Garrison 14725 | -7/Garrison | Build established: Tank 14763 | -7/Garrison | Identified exit to Factory 14876 | -7/Garrison | X0-1V1 sent hostile P-60 Hacker (x3) 14990 | -7/Garrison | Triggered checkpoint 15048 | -7/Garrison | Garrison Relay disabled 15072 | -7/Garrison | X0-1V1 sent you into danger 15312 | -7/Garrison | Triggered checkpoint 15353 | -7/Garrison | Build established: Scavenger-Tank 15366 | -7/Garrison | Destroyed 8 combat bots 15402 | -7/Garrison | Triggered checkpoint 15731 | -7/Garrison | Rescued a captive Derelict 15902 | -7/Garrison | Triggered checkpoint 15930 | -7/Garrison | Garrison Relay disabled 16454 | -7/Garrison | Triggered checkpoint 16507 | -7/Garrison | X0-1V1 activates XOMVISION 16522 | -7/Garrison | Garrison Relay disabled 16634 | -7/Garrison | Core integrity restored by X0-1V1 (+121) 16721 | -7/Garrison | Garrison Relay disabled 16830 | -7/Garrison | Core integrity restored by X0-1V1 (+121) 16865 | -7/Garrison | Garrison Relay disabled 16994 | -7/Garrison | Garrison Relay disabled 17006 | -7/Garrison | Found embedded Infiltrators 17225 | -7/Garrison | Entered Factory 17225 | -7/Factory | Accompanied by 5 allies 17332 | -7/Factory | High security lockdown imminent 17405 | -7/Factory | Lost 4 allies 17412 | -7/Factory | High security lockdown engaged 17561 | -7/Factory | Weapon slot count temporarily expanded by X0-1V1 (+3) 17576 | -7/Factory | Garrison activated, responded to threat 17814 | -7/Factory | X0-1V1 sent allied Knight (x1) 17839 | -7/Factory | Destroyed 12 combat bots 17852 | -7/Factory | Build established: Scavenger-Executioner 17961 | -7/Factory | X0-1V1 whisked you away to safety 17977 | -7/Factory | Destroyed 20 combat bots 17979 | -7/Factory | Lost 7 parts (1p1n1u4w) 18205 | -7/Factory | Core integrity restored by X0-1V1 (+137) 18261 | -7/Factory | Destroyed 7 combat bots 18262 | -7/Factory | Found Damper Plating 18311 | -7/Factory | X0-1V1 sent allied H-71 Marshal (x1) 18311 | -7/Factory | Core integrity fell below 50% 18327 | -7/Factory | Core integrity fell below 20% 18336 | -7/Factory | Destroyed by G-47 Trooper with Particle Gun Last Messages --------------- 18330_ P-60 Hacker resets H-55 Commando, system corruption cleaned. 18330_ P-60 Hacker resets P-60 Hacker, system corruption cleaned. 18330_ Ion Cannon destroyed. 18330_ Penetrated by Slug. 18330_ Gatling Laser destroyed. 18331_ X0-1V1 is amused. 18331_ Hpw. Shotgun destroyed. 18331_ P-60 Hacker resets G-50 Soldier, system corruption cleaned. 18331_ Penetrated by Slug. 18332_ P-60 Hacker resets H-55 Commando, system corruption cleaned. 18332_ Slug penetrates Wall. 18332_ Med. Treads destroyed. 18333_ P-60 Hacker resets G-47 Trooper, system corruption cleaned. 18334_ Destroyed Carbon-fiber Leg. 18334_ Penetrated by Slug. 18334_ Gatling Laser destroyed. 18335_ G-47 Trooper suffers critical hit (Destroy). 18336_ Gatling Laser destroyed. 18336_ L-41 Fighter knocked back. 18336_ X0-1V1 guffaws! Map ----- +----------------------------------------------------+ | #?????????????????????????????????????????????? | | #?????????????????????????????????????????????? | | #?????????????????????????????????????????????? | | #?????????????????????????????????????????????? | | #?????????????????????????????????????????????? | | #?????????????????????????????????????????????? | | #?????????????????????????????????????????????? | | #?????????????????????????????????????????????? | | #?????????????????????????????????????????????? | | #####?????????????????????????????????????????? | | #???????????????? ?????????????????????? | | #??????????????# ?????????????????????? | | #??????????????+ ?????????????????????? | | #??????????????# #????????????????????? | | #??????????????# #????????????????????? | | #??????????????# #?????????? ?????????? | | #??????????????# #????????? ????????? | | #??????????????# #???????? ?????????? | | #??????????????# #??????? ???????????? | | #??????????????# #?????? ????????????? | | #???############ #????? ?????????????? | | #??? # #####/########???????? | | #???" # # #???????? | | #???" # # #???????? | | #??? # # #???????? | | #??? =@ #???????? | | #??? l% #???????? | | #?? %= #???????? | | #?? ! H % #???????? | | #???? ph %= igg #???????? | | #########*%[ p% # #???????? | | %h*g g b #???????? | | % % hp = #???????? | | *% g g ????????? | | % ############????????? | | #???????????????????? | | ##+########### # ##???????????????????? | | ????????? #????????????????????? | | """ """?????""" "" #????????????????????? | | """ """ #?? """ """ " #????????????????????? | | """ """ #?? """ """ """ #????????????????????? | | #??? ? #????????????????????? | | """ """ ?????"" ?????"?? ?????????????????????? | | """ """ ?????"" ???????? ?????????????????????? | | ??? """???????" ??????????????????????????????? | | ??? ????????? ??????????????????????????????? | | ???##?????????????????????????????????????????? | | ??????????????????????????????????????????????? | | ??????????????????????????????????????????????? | | ??????????????????????????????????????????????? | +----------------------------------------------------+ Best States ------------- Heat Dissipation 141 Energy Generation 84 Energy Capacity 2340 Matter Stores 1000 Matter Capacity 1000 Sight Range 20 Terrain Scan Range 16 Terrain Scan Density 10 Armor Coverage 1600 Resistance: EM 90 Weapon Cycling 20 Phase Shifting 15 Evasion (%) 55 Targeting Accuracy 8 Core Analysis 6 Recoil Reduction 4 Salvage Targeting 2 Item Schematics ----------------- Huge Storage Unit | -10/Materials | Hacked Com. Wheel | -10/Materials | Hacked Mining Claw | -9/Materials | Extracted Imp. Aluminum Leg | -9/Materials | Extracted Wheel | -9/Materials | Extracted Field Recycling Unit | -9/Materials | Extracted Imp. Medium Laser | -9/Materials | Extracted Mni. Grenade Launcher | -9/Materials | Extracted Med. Storage Unit | -9/Materials | Extracted Robot Schematics ------------------ None Fabricated ------------ Nothing Repaired ---------- Hrd. Medium Armor Plating | 5% | -8/Materials Studied --------- Wheel | -9/Materials | Hacked Hvy. Assault Rifle | -9/Materials | Hacked Autogun | -9/Materials | Hacked Com. Wheel | -8/Materials | Hacked Arm. Treads | -8/Materials | Hacked Alien Tech Used ----------------- None Achievements -------------- None Challenges ------------ None Game ------ Seed ControlShockWand Manual? 0 Play Time 02:40:46 Cumulative 1550.0 hours Start 2026.07.18 @ 16:28:09 End 2026.07.19 @ 20:40:32 Sessions 7 Manual Loads 0 Difficulty Rogue Special Mode None Game No. 682 Rogue 682 Adventurer 0 Explorer 0 Win Type - Total 32 Types 15/7/3/0/1/1/2/2/0/1 Lore% 94 Gallery% 87 Achievement% 77 Wizard Run 0 Options --------- Layout 0 ASCII 0 Keyboard 0 Movement Numpad Keybinds 0 Fullscreen 2 Font 24/Smallcaps Map View 76x50 Zoom Use 0% Tactical HUD 1 Map Filters NONE Filters NONE Steam 1 RUN: 9fce065b-5660-4d3c-8cde-c2c6c2d39a93